[Event "Titled Tuesday Blitz February 14 Late 2023"]
[White "Remizov, Yaroslav"]
[Black "Gutenev, Alexander"]
[WhiteFideId "34134015"]
[BlackFideId "4195540"]
[WhiteElo "2421"]
[BlackElo "2455"]
[Result "0-1"]
[Round "08"]
[TimeControl "180+2"]
[Date "2023.02.14"]
[WhiteClock "0:00:06"]
[BlackClock "0:00:06"]

1. Nf3 {[%clk 0:02:58]}  Nf6 {[%clk 0:02:58]} 2. c4 {[%clk 0:02:58]}  g6 {[%clk 0:02:54]} 3. b3 {[%clk 0:02:57]}  Bg7 {[%clk 0:02:53]} 4. Bb2 {[%clk 0:02:57]}  O-O {[%clk 0:02:52]} 5. g3 {[%clk 0:02:56]}  c6 {[%clk 0:02:49]} 6. Bg2 {[%clk 0:02:52]}  d5 {[%clk 0:02:50]} 7. O-O {[%clk 0:02:52]}  Bg4 {[%clk 0:02:49]} 8. h3 {[%clk 0:02:50]}  Bxf3 {[%clk 0:02:50]} 9. Bxf3 {[%clk 0:02:50]}  Nbd7 {[%clk 0:02:50]} 10. d4 {[%clk 0:02:48]}  e6 {[%clk 0:02:49]} 11. e3 {[%clk 0:02:44]}  b5 {[%clk 0:02:38]} 12. cxb5 {[%clk 0:02:25]}  cxb5 {[%clk 0:02:38]} 13. Nd2 {[%clk 0:02:21]}  Qe7 {[%clk 0:02:29]} 14. a4 {[%clk 0:01:59]}  b4 {[%clk 0:02:27]} 15. Qe2 {[%clk 0:01:59]}  Qd6 {[%clk 0:02:20]} 16. Rac1 {[%clk 0:01:57]}  Rfc8 {[%clk 0:02:19]} 17. Qd3 {[%clk 0:01:37]}  Bf8 {[%clk 0:02:16]} 18. e4 {[%clk 0:01:21]}  dxe4 {[%clk 0:02:15]} 19. Nxe4 {[%clk 0:01:15]}  Nxe4 {[%clk 0:02:13]} 20. Bxe4 {[%clk 0:01:14]}  Rab8 {[%clk 0:02:13]} 21. d5 {[%clk 0:01:12]}  Bg7 {[%clk 0:01:54]} 22. Bxg7 {[%clk 0:00:33]}  Kxg7 {[%clk 0:01:55]} 23. Rc6 {[%clk 0:00:32]}  Rxc6 {[%clk 0:01:25]} 24. dxc6 {[%clk 0:00:33]}  Qxd3 {[%clk 0:01:25]} 25. Bxd3 {[%clk 0:00:34]}  Nc5 {[%clk 0:01:25]} 26. Bb5 {[%clk 0:00:26]}  a6 {[%clk 0:01:09]} 27. Rc1 {[%clk 0:00:24]}  axb5 {[%clk 0:00:57]} 28. axb5 {[%clk 0:00:22]}  Ne4 {[%clk 0:00:48]} 29. c7 {[%clk 0:00:17]}  Rc8 {[%clk 0:00:47]} 30. Rc6 {[%clk 0:00:11]}  Nd6 {[%clk 0:00:30]} 31. Rxd6 {[%clk 0:00:12]}  Rxc7 {[%clk 0:00:30]} 32. Rd4 {[%clk 0:00:12]}  Kf6 {[%clk 0:00:27]} 33. Rxb4 {[%clk 0:00:12]}  Ke5 {[%clk 0:00:27]} 34. Kg2 {[%clk 0:00:11]}  Kd5 {[%clk 0:00:26]} 35. b6 {[%clk 0:00:10]}  Rb7 {[%clk 0:00:27]} 36. Kf3 {[%clk 0:00:11]}  Kc5 {[%clk 0:00:27]} 37. Rc4+ {[%clk 0:00:11]}  Kd5 {[%clk 0:00:20]} 38. Rc7 {[%clk 0:00:11]}  Rxb6 {[%clk 0:00:20]} 39. Rxf7 {[%clk 0:00:11]}  Rxb3+ {[%clk 0:00:19]} 40. Kg4 {[%clk 0:00:12]}  h6 {[%clk 0:00:13]} 41. Rf6 {[%clk 0:00:11]}  Rb4+ {[%clk 0:00:10]} 42. f4 {[%clk 0:00:11]}  g5 {[%clk 0:00:10]} 43. Kh5 {[%clk 0:00:04]}  gxf4 {[%clk 0:00:09]} 44. gxf4 {[%clk 0:00:03]}  Rb3 {[%clk 0:00:10]} 45. h4 {[%clk 0:00:03]}  Rg3 {[%clk 0:00:09]} 46. Kxh6 {[%clk 0:00:03]}  e5 {[%clk 0:00:09]} 47. Rf5 {[%clk 0:00:03]}  Ke4 {[%clk 0:00:09]} 48. Rxe5+ {[%clk 0:00:03]}  Kxf4 {[%clk 0:00:10]} 49. Ra5 {[%clk 0:00:04]}  Rg1 {[%clk 0:00:10]} 50. h5 {[%clk 0:00:04]}  Rg2 {[%clk 0:00:09]} 51. Kh7 {[%clk 0:00:04]}  Rg1 {[%clk 0:00:09]} 52. h6 {[%clk 0:00:05]}  Rg2 {[%clk 0:00:07]} 53. Kh8 {[%clk 0:00:05]}  Rg1 {[%clk 0:00:07]} 54. h7 {[%clk 0:00:05]}  Rg2 {[%clk 0:00:07]} 55. Ra7 {[%clk 0:00:06]}  Kf5 {[%clk 0:00:07]} 56. Rg7 {[%clk 0:00:06]}  Ra2 {[%clk 0:00:06]} 0-1


[Site "https://www.chess.com"]

[Event "Titled Tuesday Blitz February 14 Late 2023"]
[White "Rorrer, Grayson"]
[Black "Baskakov, Egor"]
[WhiteFideId "30944996"]
[BlackFideId "24197866"]
[WhiteElo "2263"]
[BlackElo "2215"]
[Result "0-1"]
[Round "08"]
[TimeControl "180+2"]
[Date "2023.02.14"]
[WhiteClock "0:00:02"]
[BlackClock "0:00:36"]

1. c4 {[%clk 0:03:00]}  Nf6 {[%clk 0:02:58]} 2. Nf3 {[%clk 0:03:00]}  e6 {[%clk 0:02:59]} 3. e3 {[%clk 0:02:59]}  d5 {[%clk 0:02:58]} 4. Nc3 {[%clk 0:03:00]}  Be7 {[%clk 0:02:58]} 5. b3 {[%clk 0:03:00]}  O-O {[%clk 0:02:58]} 6. Qc2 {[%clk 0:03:00]}  Ne4 {[%clk 0:02:58]} 7. Nxe4 {[%clk 0:02:58]}  dxe4 {[%clk 0:02:59]} 8. Qxe4 {[%clk 0:02:58]}  Bf6 {[%clk 0:03:00]} 9. d4 {[%clk 0:02:58]}  c5 {[%clk 0:03:00]} 10. Bb2 {[%clk 0:02:51]}  Nc6 {[%clk 0:02:59]} 11. Be2 {[%clk 0:02:48]}  Qa5+ {[%clk 0:02:59]} 12. Kf1 {[%clk 0:02:46]}  Rd8 {[%clk 0:02:57]} 13. h4 {[%clk 0:02:40]}  h6 {[%clk 0:02:42]} 14. Bd3 {[%clk 0:02:35]}  Nb4 {[%clk 0:02:35]} 15. Bb1 {[%clk 0:02:25]}  Bd7 {[%clk 0:02:34]} 16. a3 {[%clk 0:02:23]}  Na6 {[%clk 0:02:25]} 17. g4 {[%clk 0:02:16]}  g6 {[%clk 0:02:19]} 18. Ne5 {[%clk 0:02:03]}  cxd4 {[%clk 0:02:05]} 19. Nxg6 {[%clk 0:01:33]}  fxg6 {[%clk 0:01:49]} 20. Qxg6+ {[%clk 0:01:33]}  Bg7 {[%clk 0:01:49]} 21. Bxd4 {[%clk 0:01:33]}  e5 {[%clk 0:01:49]} 22. b4 {[%clk 0:01:25]}  Qc7 {[%clk 0:01:47]} 23. g5 {[%clk 0:01:05]}  Qc6 {[%clk 0:01:14]} 24. Qh7+ {[%clk 0:01:03]}  Kf8 {[%clk 0:01:14]} 25. Be4 {[%clk 0:00:59]}  Qxc4+ {[%clk 0:01:14]} 26. Kg1 {[%clk 0:00:41]}  exd4 {[%clk 0:01:05]} 27. gxh6 {[%clk 0:00:36]}  Be5 {[%clk 0:00:59]} 28. Bxb7 {[%clk 0:00:25]}  Rab8 {[%clk 0:00:54]} 29. Be4 {[%clk 0:00:04]}  dxe3 {[%clk 0:00:47]} 30. Re1 {[%clk 0:00:04]}  Qg8+ {[%clk 0:00:43]} 31. Qxg8+ {[%clk 0:00:04]}  Kxg8 {[%clk 0:00:44]} 32. Rxe3 {[%clk 0:00:02]}  Bd4 {[%clk 0:00:36]} 33. Rg3+ {[%clk 0:00:01]}  Kh8 {[%clk 0:00:37]} 34. Rh2 {[%clk 0:00:01]}  Be5 {[%clk 0:00:36]} 35. Rhg2 {[%clk 0:00:01]}  Bxg3 {[%clk 0:00:36]} 36. fxg3 {[%clk 0:00:02]} 0-1


[Site "https://www.chess.com"]

[Event "Titled Tuesday Blitz February 14 Late 2023"]
[White "Yuan, Qingyu"]
[Black "Firat, Burak"]
[WhiteFideId "8609772"]
[BlackFideId "6305881"]
[WhiteElo "2373"]
[BlackElo "2456"]
[Result "0-1"]
[Round "08"]
[TimeControl "180+2"]
[Date "2023.02.14"]
[WhiteClock "0:00:02"]
[BlackClock "0:00:26"]

1. e4 {[%clk 0:03:00]}  c5 {[%clk 0:03:00]} 2. Nf3 {[%clk 0:03:00]}  e6 {[%clk 0:03:00]} 3. c3 {[%clk 0:02:58]}  Nf6 {[%clk 0:02:58]} 4. e5 {[%clk 0:02:58]}  Nd5 {[%clk 0:02:59]} 5. g3 {[%clk 0:02:59]}  d6 {[%clk 0:02:59]} 6. exd6 {[%clk 0:03:00]}  Bxd6 {[%clk 0:02:58]} 7. Bg2 {[%clk 0:03:00]}  O-O {[%clk 0:02:59]} 8. O-O {[%clk 0:03:01]}  c4 {[%clk 0:02:53]} 9. b3 {[%clk 0:02:47]}  cxb3 {[%clk 0:02:52]} 10. axb3 {[%clk 0:02:47]}  Nc6 {[%clk 0:02:51]} 11. c4 {[%clk 0:02:38]}  Ndb4 {[%clk 0:02:42]} 12. Bb2 {[%clk 0:02:36]}  Nd3 {[%clk 0:02:37]} 13. Bc3 {[%clk 0:02:35]}  Bc5 {[%clk 0:02:35]} 14. Qe2 {[%clk 0:02:25]}  e5 {[%clk 0:02:32]} 15. Ne1 {[%clk 0:01:53]}  Bf5 {[%clk 0:02:20]} 16. Bd5 {[%clk 0:01:34]}  Nd4 {[%clk 0:02:05]} 17. Bxd4 {[%clk 0:01:23]}  Bxd4 {[%clk 0:02:06]} 18. Nc3 {[%clk 0:01:21]}  Nc5 {[%clk 0:02:06]} 19. b4 {[%clk 0:01:15]}  Nb3 {[%clk 0:01:47]} 20. Ra3 {[%clk 0:01:14]}  Nc1 {[%clk 0:01:48]} 21. Qf3 {[%clk 0:01:07]}  Bg6 {[%clk 0:01:47]} 22. Ne4 {[%clk 0:01:00]}  Kh8 {[%clk 0:01:38]} 23. Nc2 {[%clk 0:00:44]}  f5 {[%clk 0:01:38]} 24. Nxd4 {[%clk 0:00:37]}  fxe4 {[%clk 0:01:37]} 25. Qd1 {[%clk 0:00:26]}  exd4 {[%clk 0:01:34]} 26. Qxc1 {[%clk 0:00:26]}  Qe7 {[%clk 0:01:34]} 27. Qb2 {[%clk 0:00:21]}  Qe5 {[%clk 0:01:28]} 28. Bxb7 {[%clk 0:00:15]}  Rab8 {[%clk 0:01:27]} 29. Bd5 {[%clk 0:00:16]}  Bh5 {[%clk 0:01:04]} 30. Re1 {[%clk 0:00:16]}  Qf6 {[%clk 0:01:04]} 31. d3 {[%clk 0:00:10]}  Rxb4 {[%clk 0:00:57]} 32. Qd2 {[%clk 0:00:04]}  exd3 {[%clk 0:00:47]} 33. Rxd3 {[%clk 0:00:03]}  a5 {[%clk 0:00:46]} 34. Rxd4 {[%clk 0:00:03]}  g5 {[%clk 0:00:46]} 35. f4 {[%clk 0:00:03]}  Bg6 {[%clk 0:00:35]} 36. Rf1 {[%clk 0:00:02]}  Qb6 {[%clk 0:00:33]} 37. Kh1 {[%clk 0:00:02]}  Rb2 {[%clk 0:00:32]} 38. Qc3 {[%clk 0:00:03]}  Rc2 {[%clk 0:00:30]} 39. Qa1 {[%clk 0:00:02]}  Qb2 {[%clk 0:00:24]} 40. Qxb2 {[%clk 0:00:02]}  Rxb2 {[%clk 0:00:25]} 41. c5 {[%clk 0:00:02]}  Rd8 {[%clk 0:00:25]} 42. c6 {[%clk 0:00:02]}  Rxd5 {[%clk 0:00:24]} 43. Rxd5 {[%clk 0:00:01]}  Be4+ {[%clk 0:00:25]} 44. Kg1 {[%clk 0:00:02]}  Rg2+ {[%clk 0:00:24]} 45. Kh1 {[%clk 0:00:02]}  Rxg3+ {[%clk 0:00:25]} 46. Rf3 {[%clk 0:00:02]}  Bxf3# {[%clk 0:00:26]} 0-1


[Site "https://www.chess.com"]

[Event "Titled Tuesday Blitz February 14 Late 2023"]
[White "Christiansen, Johan-Sebastian"]
[Black "Krishnan, Varun"]
[WhiteFideId "1512668"]
[BlackFideId "5054508"]
[WhiteElo "2579"]
[BlackElo "2341"]
[Result "1-0"]
[Round "08"]
[TimeControl "180+2"]
[Date "2023.02.14"]
[WhiteClock "0:01:22"]
[BlackClock "0:00:54"]

1. e4 {[%clk 0:02:58]}  c5 {[%clk 0:02:59]} 2. Nf3 {[%clk 0:02:58]}  d6 {[%clk 0:02:50]} 3. Nc3 {[%clk 0:02:57]}  Nf6 {[%clk 0:02:49]} 4. e5 {[%clk 0:02:57]}  dxe5 {[%clk 0:02:49]} 5. Nxe5 {[%clk 0:02:58]}  e6 {[%clk 0:02:49]} 6. Bb5+ {[%clk 0:02:57]}  Nbd7 {[%clk 0:02:49]} 7. d4 {[%clk 0:02:57]}  cxd4 {[%clk 0:02:43]} 8. Qxd4 {[%clk 0:02:57]}  a6 {[%clk 0:02:43]} 9. Bxd7+ {[%clk 0:02:51]}  Nxd7 {[%clk 0:02:38]} 10. Bf4 {[%clk 0:02:33]}  Bc5 {[%clk 0:02:25]} 11. Qc4 {[%clk 0:02:01]}  Qe7 {[%clk 0:01:48]} 12. Ne4 {[%clk 0:01:44]}  b5 {[%clk 0:01:25]} 13. Qd3 {[%clk 0:01:42]}  Nxe5 {[%clk 0:01:14]} 14. Bxe5 {[%clk 0:01:41]}  Bb7 {[%clk 0:01:14]} 15. Bxg7 {[%clk 0:01:28]}  Qh4 {[%clk 0:00:54]} 16. Nf6+ {[%clk 0:01:22]} 1-0


[Site "https://www.chess.com"]

[Event "Titled Tuesday Blitz February 14 Late 2023"]
[White "Maksimovic, Bojan"]
[Black "Lopez Perdomo, Juan David"]
[WhiteFideId "14408120"]
[BlackFideId "4405137"]
[WhiteElo "2486"]
[BlackElo "2029"]
[Result "1-0"]
[Round "08"]
[TimeControl "180+2"]
[Date "2023.02.14"]
[WhiteClock "0:01:15"]
[BlackClock "0:00:02"]

1. e4 {[%clk 0:03:00]}  e6 {[%clk 0:02:59]} 2. d4 {[%clk 0:03:00]}  d5 {[%clk 0:03:00]} 3. Nc3 {[%clk 0:03:01]}  Bb4 {[%clk 0:03:00]} 4. e5 {[%clk 0:03:02]}  c5 {[%clk 0:03:01]} 5. Bd2 {[%clk 0:03:02]}  Ne7 {[%clk 0:03:01]} 6. a3 {[%clk 0:03:02]}  cxd4 {[%clk 0:02:47]} 7. axb4 {[%clk 0:02:59]}  dxc3 {[%clk 0:02:47]} 8. Bxc3 {[%clk 0:03:00]}  Qc7 {[%clk 0:02:34]} 9. Nf3 {[%clk 0:03:00]}  Bd7 {[%clk 0:02:27]} 10. Bd3 {[%clk 0:03:00]}  h6 {[%clk 0:02:22]} 11. O-O {[%clk 0:03:00]}  O-O {[%clk 0:02:22]} 12. Re1 {[%clk 0:02:58]}  a6 {[%clk 0:02:22]} 13. b5 {[%clk 0:02:52]}  a5 {[%clk 0:02:18]} 14. Qd2 {[%clk 0:02:45]}  b6 {[%clk 0:02:18]} 15. b4 {[%clk 0:02:41]}  a4 {[%clk 0:02:12]} 16. Bd4 {[%clk 0:02:40]}  Nf5 {[%clk 0:01:38]} 17. Bxf5 {[%clk 0:02:34]}  exf5 {[%clk 0:01:39]} 18. Qd3 {[%clk 0:02:21]}  Be6 {[%clk 0:01:30]} 19. Ra3 {[%clk 0:02:10]}  Qe7 {[%clk 0:01:13]} 20. c3 {[%clk 0:02:09]}  Nd7 {[%clk 0:01:12]} 21. Rea1 {[%clk 0:02:08]}  g5 {[%clk 0:00:43]} 22. Rxa4 {[%clk 0:02:08]}  Rxa4 {[%clk 0:00:44]} 23. Rxa4 {[%clk 0:02:09]}  g4 {[%clk 0:00:44]} 24. Nd2 {[%clk 0:02:09]}  f4 {[%clk 0:00:44]} 25. Ra7 {[%clk 0:02:09]}  Qg5 {[%clk 0:00:44]} 26. Qe2 {[%clk 0:01:55]}  f3 {[%clk 0:00:42]} 27. Qe3 {[%clk 0:01:55]}  Qg6 {[%clk 0:00:33]} 28. Ra1 {[%clk 0:01:44]}  Bf5 {[%clk 0:00:19]} 29. Kh1 {[%clk 0:01:41]}  Be4 {[%clk 0:00:19]} 30. gxf3 {[%clk 0:01:36]}  Bf5 {[%clk 0:00:04]} 31. fxg4 {[%clk 0:01:36]}  h5 {[%clk 0:00:05]} 32. gxf5 {[%clk 0:01:35]}  Qxf5 {[%clk 0:00:06]} 33. Rg1+ {[%clk 0:01:34]}  Kh7 {[%clk 0:00:07]} 34. Nf3 {[%clk 0:01:33]}  Re8 {[%clk 0:00:07]} 35. Ng5+ {[%clk 0:01:33]}  Kh8 {[%clk 0:00:07]} 36. Nxf7+ {[%clk 0:01:32]}  Qxf7 {[%clk 0:00:07]} 37. Qh6+ {[%clk 0:01:32]}  Qh7 {[%clk 0:00:07]} 38. e6+ {[%clk 0:01:33]}  Ne5 {[%clk 0:00:02]} 39. Qf6+ {[%clk 0:01:15]} 1-0


[Site "https://www.chess.com"]

[Event "Titled Tuesday Blitz February 14 Late 2023"]
[White "Chigaev, Maksim"]
[Black "Kavutskiy, Konstantin"]
[WhiteFideId "4108116"]
[BlackFideId "2026384"]
[WhiteElo "2628"]
[BlackElo "2414"]
[Result "1-0"]
[Round "08"]
[TimeControl "180+2"]
[Date "2023.02.14"]
[WhiteClock "0:00:05"]
[BlackClock "0:00:05"]

1. d4 {[%clk 0:03:00]}  Nf6 {[%clk 0:02:58]} 2. Nf3 {[%clk 0:03:00]}  g6 {[%clk 0:02:59]} 3. c4 {[%clk 0:02:57]}  Bg7 {[%clk 0:02:59]} 4. Nc3 {[%clk 0:02:58]}  O-O {[%clk 0:02:59]} 5. e4 {[%clk 0:02:58]}  d6 {[%clk 0:02:59]} 6. Be2 {[%clk 0:02:59]}  e5 {[%clk 0:02:59]} 7. O-O {[%clk 0:02:59]}  h6 {[%clk 0:02:59]} 8. Re1 {[%clk 0:02:56]}  Nbd7 {[%clk 0:02:59]} 9. d5 {[%clk 0:02:43]}  Nh7 {[%clk 0:02:54]} 10. b4 {[%clk 0:02:41]}  a5 {[%clk 0:02:52]} 11. bxa5 {[%clk 0:02:41]}  Rxa5 {[%clk 0:02:52]} 12. a4 {[%clk 0:02:42]}  f5 {[%clk 0:02:49]} 13. Ra3 {[%clk 0:02:41]}  b6 {[%clk 0:02:41]} 14. Bd2 {[%clk 0:02:41]}  Ra8 {[%clk 0:02:40]} 15. Bd3 {[%clk 0:02:40]}  Nc5 {[%clk 0:02:36]} 16. Bc2 {[%clk 0:02:40]}  f4 {[%clk 0:02:34]} 17. h3 {[%clk 0:02:24]}  g5 {[%clk 0:02:29]} 18. Nh2 {[%clk 0:02:23]}  Nf6 {[%clk 0:02:29]} 19. Nb5 {[%clk 0:02:14]}  h5 {[%clk 0:02:25]} 20. a5 {[%clk 0:02:15]}  g4 {[%clk 0:02:11]} 21. h4 {[%clk 0:02:02]}  g3 {[%clk 0:01:43]} 22. fxg3 {[%clk 0:01:58]}  Ng4 {[%clk 0:01:34]} 23. gxf4 {[%clk 0:01:26]}  Qxh4 {[%clk 0:01:23]} 24. Rh3 {[%clk 0:01:26]}  Qf2+ {[%clk 0:01:21]} 25. Kh1 {[%clk 0:01:26]}  Qxf4 {[%clk 0:01:05]} 26. Nxg4 {[%clk 0:01:05]}  Bxg4 {[%clk 0:00:51]} 27. Bxf4 {[%clk 0:00:42]}  Bxd1 {[%clk 0:00:50]} 28. Rxd1 {[%clk 0:00:35]}  exf4 {[%clk 0:00:43]} 29. axb6 {[%clk 0:00:30]}  cxb6 {[%clk 0:00:43]} 30. Nxd6 {[%clk 0:00:30]}  Ra2 {[%clk 0:00:44]} 31. Bb1 {[%clk 0:00:26]}  Re2 {[%clk 0:00:41]} 32. Nf5 {[%clk 0:00:21]}  Nxe4 {[%clk 0:00:35]} 33. Bxe4 {[%clk 0:00:19]}  Rxe4 {[%clk 0:00:36]} 34. Rxh5 {[%clk 0:00:17]}  Rxc4 {[%clk 0:00:19]} 35. Rg5 {[%clk 0:00:15]}  Rc7 {[%clk 0:00:19]} 36. d6 {[%clk 0:00:10]}  Rd7 {[%clk 0:00:19]} 37. Re1 {[%clk 0:00:10]}  Rff7 {[%clk 0:00:07]} 38. Nh6+ {[%clk 0:00:09]}  Kf8 {[%clk 0:00:08]} 39. Nxf7 {[%clk 0:00:09]}  Kxf7 {[%clk 0:00:09]} 40. Re7+ {[%clk 0:00:05]}  Rxe7 {[%clk 0:00:07]} 41. dxe7 {[%clk 0:00:06]}  Bf6 {[%clk 0:00:06]} 42. Rb5 {[%clk 0:00:05]}  Kxe7 {[%clk 0:00:07]} 43. Rxb6 {[%clk 0:00:05]}  Bh4 {[%clk 0:00:05]} 44. Kh2 {[%clk 0:00:05]}  Bg3+ {[%clk 0:00:05]} 45. Kh3 {[%clk 0:00:05]}  Kf7 {[%clk 0:00:06]} 46. Kg4 {[%clk 0:00:06]}  Ke7 {[%clk 0:00:05]} 47. Kf5 {[%clk 0:00:05]}  Bh2 {[%clk 0:00:05]} 48. Rg6 {[%clk 0:00:05]}  Kf7 {[%clk 0:00:05]} 49. Rg4 {[%clk 0:00:05]} 1-0


[Site "https://www.chess.com"]

[Event "Titled Tuesday Blitz February 14 Late 2023"]
[White "Lucassen, Mickey"]
[Black "Kamsky, Gata"]
[WhiteFideId "12919110"]
[BlackFideId "2000024"]
[WhiteElo "2023"]
[BlackElo "2665"]
[Result "1-0"]
[Round "08"]
[TimeControl "180+2"]
[Date "2023.02.14"]
[WhiteClock "0:00:05"]
[BlackClock "0:00:01"]

1. e4 {[%clk 0:03:00]}  c5 {[%clk 0:02:52]} 2. Nf3 {[%clk 0:03:00]}  e6 {[%clk 0:02:52]} 3. d4 {[%clk 0:02:59]}  cxd4 {[%clk 0:02:51]} 4. Nxd4 {[%clk 0:03:00]}  a6 {[%clk 0:02:51]} 5. c4 {[%clk 0:03:00]}  Nf6 {[%clk 0:02:49]} 6. Nc3 {[%clk 0:03:00]}  Qc7 {[%clk 0:02:49]} 7. Qf3 {[%clk 0:02:59]}  d6 {[%clk 0:02:45]} 8. Be2 {[%clk 0:02:52]}  Nbd7 {[%clk 0:02:43]} 9. Qg3 {[%clk 0:02:51]}  b6 {[%clk 0:02:41]} 10. O-O {[%clk 0:02:40]}  Bb7 {[%clk 0:02:41]} 11. Re1 {[%clk 0:02:34]}  h5 {[%clk 0:02:36]} 12. h4 {[%clk 0:02:30]}  Rc8 {[%clk 0:02:34]} 13. f3 {[%clk 0:02:18]}  g6 {[%clk 0:02:25]} 14. Be3 {[%clk 0:02:15]}  Be7 {[%clk 0:02:24]} 15. Rad1 {[%clk 0:02:14]}  Ne5 {[%clk 0:02:21]} 16. Nc2 {[%clk 0:01:49]}  O-O {[%clk 0:02:09]} 17. Bf4 {[%clk 0:01:31]}  Rfd8 {[%clk 0:02:01]} 18. Ne3 {[%clk 0:01:29]}  Rd7 {[%clk 0:01:39]} 19. Rd2 {[%clk 0:01:29]}  Qd8 {[%clk 0:01:22]} 20. Bg5 {[%clk 0:01:28]}  Qc7 {[%clk 0:00:57]} 21. Red1 {[%clk 0:01:26]}  Rdd8 {[%clk 0:00:55]} 22. Kh1 {[%clk 0:01:15]}  Nh7 {[%clk 0:00:50]} 23. Bxe7 {[%clk 0:01:14]}  Qxe7 {[%clk 0:00:50]} 24. f4 {[%clk 0:01:09]}  Nc6 {[%clk 0:00:42]} 25. Bxh5 {[%clk 0:01:01]}  Kh8 {[%clk 0:00:31]} 26. Bf3 {[%clk 0:00:58]}  Ba8 {[%clk 0:00:31]} 27. Qh3 {[%clk 0:00:50]}  Qf6 {[%clk 0:00:29]} 28. Qg3 {[%clk 0:00:41]}  Qe7 {[%clk 0:00:28]} 29. Ng4 {[%clk 0:00:33]}  Na5 {[%clk 0:00:25]} 30. b3 {[%clk 0:00:26]}  b5 {[%clk 0:00:21]} 31. e5 {[%clk 0:00:25]}  dxe5 {[%clk 0:00:18]} 32. Nxe5 {[%clk 0:00:20]}  Rxd2 {[%clk 0:00:14]} 33. Rxd2 {[%clk 0:00:20]}  Nf8 {[%clk 0:00:11]} 34. Ne4 {[%clk 0:00:14]}  Bxe4 {[%clk 0:00:11]} 35. Bxe4 {[%clk 0:00:15]}  bxc4 {[%clk 0:00:11]} 36. h5 {[%clk 0:00:13]}  c3 {[%clk 0:00:09]} 37. Rc2 {[%clk 0:00:13]}  Nb7 {[%clk 0:00:07]} 38. Rxc3 {[%clk 0:00:09]}  Rxc3 {[%clk 0:00:02]} 39. Qxc3 {[%clk 0:00:10]}  Kg8 {[%clk 0:00:01]} 40. Qg3 {[%clk 0:00:07]}  Nd6 {[%clk 0:00:01]} 41. Bd3 {[%clk 0:00:05]} 1-0


[Site "https://www.chess.com"]